bitfinex/quotes_BTCUSD_20230404
["timestamp","ask_amount","ask_price","bid_price","bid_amount"]
[1680587001518,1.89326224,27894.0,27893.0,0.74242727]
[1680587001711,1.89376975,27894.0,27893.0,0.74230727]
[1680587002366,1.89335224,27894.0,27893.0,0.74242727]
[1680587002610,1.89326224,27894.0,27893.0,0.74248727]
[1680587002823,1.89326224,27894.0,27893.0,0.57177058]
[1680587003248,1.42131901,27894.0,27893.0,0.57177058]
[1680587003466,1.42131901,27894.0,27893.0,0.74248727]
[1680587003909,0.49336569,27893.0,27892.0,0.31315479]
[1680587004132,0.49336569,27893.0,27892.0,0.31327479]
[1680587004349,0.49836569,27893.0,27892.0,0.31327479]
[1680587004813,0.49836569,27893.0,27892.0,0.40911427]
[1680587005030,0.52336569,27893.0,27892.0,0.40911427]
[1680587005244,0.52336569,27893.0,27892.0,0.4092428]
[1680587005465,0.52336569,27893.0,27892.0,0.31340332]
[1680587006589,0.52336569,27893.0,27892.0,0.23441685]
[1680587006804,0.52336569,27893.0,27892.0,0.23435685]
[1680587007021,0.52336569,27893.0,27892.0,0.23441685]
[1680587007665,0.5188732,27893.0,27892.0,0.23323685]
[1680587010878,0.5188732,27893.0,27892.0,0.22823685]
[1680587011970,0.5188732,27893.0,27892.0,0.39930088]
[1680587012190,0.5188732,27893.0,27892.0,0.22823685]
[1680587012593,0.5188732,27893.0,27892.0,0.39930011]
[1680587015467,0.5188732,27893.0,27892.0,0.22823685]
[1680587015664,0.5188732,27893.0,27892.0,0.39931942]
[1680587016478,0.5188732,27893.0,27892.0,0.22823685]
[1680587018377,0.00905175,27899.0,27898.0,0.2]
[1680587018611,9e-05,27903.0,27898.0,0.90534653]
[1680587018836,0.34610023,27903.0,27902.0,0.16257727]
[1680587019061,0.34610023,27903.0,27902.0,0.2116543]
[1680587019288,0.34610023,27903.0,27902.0,0.32290477]
[1680587019521,0.34710023,27903.0,27902.0,0.32290477]
[1680587019741,0.34610023,27903.0,27902.0,0.32290477]
[1680587019983,0.41418737,27903.0,27902.0,0.34690477]
[1680587020219,0.00051,27903.0,27902.0,0.32290477]
[1680587020439,0.36061056,27905.0,27902.0,0.48214221]
[1680587020682,0.36112056,27905.0,27903.0,0.25741283]
[1680587020907,0.36112056,27905.0,27903.0,0.08545283]
[1680587021127,0.36112056,27905.0,27904.0,0.0771]
[1680587021339,0.36112056,27905.0,27904.0,0.1338595]
[1680587022214,0.36312056,27905.0,27904.0,0.0771]
[1680587022626,0.37212056,27905.0,27904.0,0.0781]
[1680587023131,0.36112056,27905.0,27904.0,0.0771]
[1680587023315,0.36112056,27905.0,27904.0,0.0811]
[1680587023522,0.36112056,27905.0,27904.0,0.0771]
[1680587023815,0.37012056,27905.0,27904.0,0.0781]
[1680587024061,0.36112056,27905.0,27904.0,0.0771]
[1680587024276,0.36112056,27905.0,27904.0,0.0811]
[1680587025284,0.36112056,27905.0,27904.0,0.0771]
[1680587025499,0.37012056,27905.0,27904.0,0.0781]
[1680587025705,0.36112056,27905.0,27904.0,0.0771]
[1680587026120,0.36112056,27905.0,27904.0,0.0811]
[1680587026332,0.36112056,27905.0,27904.0,0.0771]
[1680587026767,0.37012056,27905.0,27904.0,0.0781]
[1680587027024,0.36112056,27905.0,27904.0,0.0771]
[1680587027259,0.36112056,27905.0,27904.0,0.0811]
[1680587028001,0.36112056,27905.0,27904.0,0.0771]
[1680587028642,0.36112056,27905.0,27904.0,0.0811]
[1680587029465,0.36112056,27905.0,27904.0,0.0771]
[1680587029685,0.37012056,27905.0,27904.0,0.0781]
[1680587029894,0.36112056,27905.0,27904.0,0.0771]
[1680587030112,0.007677,27905.0,27904.0,0.0811]
[1680587030333,0.015667,27905.0,27904.0,0.0811]
[1680587030787,0.45850734,27905.0,27904.0,0.0811]
[1680587031012,0.45901734,27905.0,27904.0,0.0811]
[1680587031243,0.46801734,27905.0,27904.0,0.001]
[1680587031466,0.45850734,27905.0,27902.0,0.17196]
[1680587031679,0.0085,27904.0,27902.0,0.17196]
[1680587031888,0.0085,27904.0,27901.0,0.6649498]
[1680587032102,0.0085,27904.0,27902.0,0.17196]
[1680587032319,0.0085,27904.0,27901.0,0.6649498]
[1680587032557,0.0085,27904.0,27902.0,0.17196]
[1680587032775,0.017667,27904.0,27901.0,0.44924]
[1680587032979,0.015667,27904.0,27901.0,0.44906]
[1680587033469,0.35550528,27903.0,27901.0,0.44906]
[1680587033683,0.35550528,27903.0,27901.0,0.44924]
[1680587034548,0.35750528,27903.0,27901.0,0.24924]
[1680587034788,0.37900728,27903.0,27901.0,0.0771]
[1680587036113,0.33005481,27902.0,27901.0,0.0771]
[1680587036336,0.34572181,27902.0,27901.0,0.0771]
[1680587037408,0.34772181,27902.0,27901.0,0.0771]
[1680587038071,0.34055481,27902.0,27901.0,0.0771]
[1680587038768,0.34772181,27902.0,27901.0,0.0771]
[1680587039676,0.34823181,27902.0,27901.0,0.0771]
[1680587040143,0.34772181,27902.0,27901.0,0.0771]
[1680587041337,0.017667,27902.0,27900.0,0.12307774]
[1680587041555,0.017667,27902.0,27900.0,0.12289774]
[1680587042298,0.032002,27902.0,27900.0,0.12289774]
[1680587042703,0.015667,27902.0,27900.0,0.12289774]
[1680587042969,0.015667,27902.0,27900.0,0.12689774]
[1680587043638,0.05544083,27902.0,27900.0,0.12689774]
[1680587044097,0.015667,27902.0,27900.0,0.12689774]
[1680587044312,0.0085,27902.0,27901.0,0.17482611]
[1680587044753,0.0085,27904.0,27901.0,0.17482611]
[1680587044967,0.0085,27904.0,27901.0,0.34678611]
[1680587045836,0.002,27902.0,27901.0,0.34678611]
[1680587046054,0.0085,27904.0,27901.0,0.34678611]
[1680587046269,0.01101,27904.0,27901.0,0.34178611]
[1680587046527,0.00901,27904.0,27901.0,0.38369272]
[1680587046753,0.01001,27904.0,27902.0,0.1456152]
[1680587046971,0.00901,27904.0,27902.0,0.1456152]
[1680587047184,0.0095,27904.0,27902.0,0.3175752]
[1680587047383,0.0095,27904.0,27902.0,0.19039138]
[1680587047503,0.0085,27904.0,27902.0,0.19039138]
[1680587048549,0.00901,27904.0,27902.0,0.19439138]
[1680587050876,0.00901,27904.0,27902.0,0.1496152]
[1680587051309,0.00901,27904.0,27903.0,0.16180328]
[1680587052590,0.01101,27904.0,27903.0,0.16180328]
[1680587052801,0.01101,27904.0,27901.0,0.0771]
[1680587053055,0.0105,27904.0,27902.0,0.16997194]
[1680587053267,0.01101,27904.0,27902.0,0.16997194]
[1680587053479,0.2772993,27905.0,27902.0,0.17015194]
[1680587053693,0.007167,27905.0,27902.0,0.17015194]
[1680587053908,0.107167,27905.0,27902.0,0.17003194]
[1680587054157,0.107167,27905.0,27902.0,0.19487713]
[1680587054823,0.107167,27905.0,27903.0,0.004]
[1680587055009,0.44839572,27905.0,27902.0,0.19487713]
[1680587055246,0.39301626,27904.0,27902.0,0.18115194]
[1680587055477,0.40018326,27904.0,27902.0,0.17015194]
[1680587055731,0.40018326,27904.0,27903.0,0.004]
[1680587055982,0.70868326,27904.0,27902.0,0.00018]
[1680587056206,0.1085,27903.0,27900.0,0.12571418]
[1680587056451,0.1085,27903.0,27902.0,0.011]
[1680587056695,0.015967,27903.0,27900.0,0.08235781]
[1680587056942,0.015667,27903.0,27900.0,0.08235781]
[1680587057178,0.43707055,27903.0,27900.0,0.08235781]
[1680587057389,0.43737055,27903.0,27900.0,0.08235781]
[1680587058285,0.43937055,27903.0,27900.0,0.10035781]
[1680587058498,0.43737055,27903.0,27900.0,0.08235781]
[1680587058717,0.43837055,27903.0,27900.0,0.09835781]
[1680587059144,0.43737055,27903.0,27900.0,0.08235781]
[1680587059356,0.43837055,27903.0,27900.0,0.09235781]
[1680587061126,0.43837055,27903.0,27900.0,0.17783508]
[1680587061788,0.49135101,27903.0,27900.0,0.17783508]
[1680587062862,0.34990283,27902.0,27900.0,0.17783508]
[1680587063044,0.35020283,27902.0,27901.0,0.08547727]
[1680587063286,0.35870283,27902.0,27901.0,0.08547727]
[1680587064398,0.35870283,27902.0,27901.0,0.08847727]
[1680587064839,0.0088,27902.0,27901.0,0.08847727]
[1680587065052,0.0085,27902.0,27901.0,0.55449805]
[1680587065496,0.0003,27904.0,27901.0,1.24674485]
[1680587065800,0.00909233,27908.0,27903.0,0.1536]
[1680587065989,0.00939233,27908.0,27906.0,0.08545683]
[1680587066250,0.00939233,27908.0,27906.0,0.14616636]
[1680587066463,0.00939233,27908.0,27906.0,0.08545683]
[1680587066878,0.0085,27907.0,27906.0,0.08545683]
[1680587067087,0.0088,27907.0,27906.0,0.08545683]
[1680587067312,0.0088,27907.0,27905.0,0.53236918]
[1680587067528,0.0088,27907.0,27905.0,0.40418394]
[1680587067738,0.0088,27907.0,27906.0,0.009]
[1680587067952,0.0088,27907.0,27905.0,0.40418394]
[1680587068182,0.0098,27907.0,27906.0,0.009]
[1680587068845,0.0095,27907.0,27906.0,0.009]
[1680587069068,0.0098,27907.0,27906.0,0.009]
[1680587071454,0.0095,27907.0,27906.0,0.009]
[1680587071676,0.0098,27907.0,27906.0,0.009]
[1680587072771,0.0098,27907.0,27906.0,0.07199648]
[1680587072988,0.0095,27907.0,27906.0,0.07199648]
[1680587080487,0.00939435,27907.0,27906.0,0.07199648]
[1680587085289,0.00939435,27907.0,27906.0,0.009]
[1680587085505,0.47329793,27907.0,27906.0,0.009]
[1680587085936,0.47359793,27907.0,27905.0,0.01656538]
[1680587086127,0.47359793,27907.0,27904.0,0.1719]
[1680587086378,0.47359793,27907.0,27905.0,0.1719]
[1680587086614,0.47359793,27907.0,27904.0,0.1719]
[1680587087023,0.47359793,27907.0,27905.0,0.1719]
[1680587087258,0.47259793,27907.0,27905.0,0.1719]
[1680587087483,0.08416258,27907.0,27906.0,0.001]
[1680587087699,0.3,27906.0,27903.0,0.17196]
[1680587087925,0.3,27906.0,27904.0,0.002]
[1680587087926,0.015667,27905.0,27904.0,0.002]
[1680587088152,0.015667,27905.0,27901.0,0.08545683]
[1680587088368,0.53810301,27905.0,27901.0,0.08545683]
[1680587088619,0.3962062,27905.0,27901.0,0.08545683]
[1680587089074,0.49225012,27905.0,27901.0,0.08545683]
[1680587089289,0.47525012,27905.0,27901.0,0.08545683]
[1680587090155,0.47525012,27905.0,27901.0,0.08745683]
[1680587090600,0.3,27904.0,27901.0,0.08745683]
[1680587090829,0.43672182,27903.0,27901.0,0.002]
[1680587091047,0.43702182,27903.0,27901.0,0.002]
[1680587091486,0.43702182,27903.0,27900.0,0.25741683]
[1680587091700,0.43702182,27903.0,27901.0,0.002]
[1680587091912,0.43702182,27903.0,27900.0,0.33357675]
[1680587092129,0.43702182,27903.0,27901.0,0.002]
[1680587093631,0.3498434,27902.0,27901.0,0.002]
[1680587093844,0.3586434,27902.0,27900.0,0.24811992]
[1680587094063,0.41757444,27902.0,27900.0,0.24811992]
[1680587094279,0.3501434,27902.0,27901.0,0.002]
[1680587094490,0.3586434,27902.0,27900.0,0.24811992]
[1680587094700,0.0003,27902.0,27901.0,0.002]
[1680587094951,0.015667,27903.0,27900.0,0.24811992]
[1680587095176,0.001,27902.0,27900.0,0.25011992]
[1680587095407,0.015667,27903.0,27900.0,0.24811992]
[1680587096345,0.35878311,27903.0,27900.0,0.24811992]
[1680587096593,0.35908311,27903.0,27901.0,0.002]
[1680587096838,0.35908311,27903.0,27900.0,0.24811992]
[1680587097031,0.36008311,27903.0,27900.0,0.25011992]
[1680587098144,0.35291611,27903.0,27900.0,0.25011992]
[1680587098769,0.35291611,27903.0,27901.0,0.08409527]
[1680587099843,0.35191611,27903.0,27901.0,0.08409527]
[1680587100080,0.35191611,27903.0,27901.0,0.08609527]
[1680587115006,0.35191611,27903.0,27901.0,0.002]
[1680587115007,0.0766,27902.0,27901.0,0.002]
[1680587115232,0.44776209,27902.0,27901.0,0.00192702]
[1680587115461,0.74776209,27902.0,27901.0,0.00192702]
[1680587115896,0.74806209,27902.0,27901.0,0.00192702]
[1680587116109,0.79782709,27902.0,27901.0,0.00192702]
[1680587116591,0.79782709,27902.0,27898.0,0.08545683]
[1680587116817,0.077,27900.0,27898.0,0.08545683]
[1680587117047,0.084168,27900.0,27898.0,0.08545683]
[1680587117268,0.0085,27899.0,27898.0,0.08545683]
[1680587118360,0.0185,27899.0,27898.0,0.08545683]
[1680587119013,0.07676576,27899.0,27898.0,0.08545683]
[1680587121083,0.15346576,27899.0,27897.0,0.28800448]
[1680587121294,0.15346576,27899.0,27898.0,0.08545683]
[1680587121517,0.102368,27899.0,27898.0,0.08545683]
[1680587121745,0.0952,27899.0,27898.0,0.08545683]
[1680587122171,0.102368,27899.0,27898.0,0.08545683]
[1680587125063,0.0185,27899.0,27898.0,0.21364207]
[1680587125270,0.0185,27899.0,27898.0,0.31364207]
[1680587125474,0.0185,27899.0,27898.0,0.52571446]
[1680587125680,0.0185,27899.0,27898.0,0.53645483]
[1680587126096,0.0085,27899.0,27898.0,0.53645483]
[1680587126309,0.0085,27901.0,27898.0,0.53645483]
[1680587126508,0.0085,27901.0,27899.0,0.08073685]
[1680587127133,0.0085,27901.0,27900.0,0.08550544]
[1680587128372,0.0255,27901.0,27900.0,0.08550544]
[1680587128579,0.0085,27901.0,27900.0,0.08550544]
[1680587129199,0.0315,27901.0,27900.0,0.08550544]
[1680587130069,0.0315,27901.0,27899.0,0.08545683]
[1680587130545,0.03156,27901.0,27899.0,0.08535748]
[1680587130767,0.0315,27901.0,27899.0,0.08535748]
[1680587131163,0.0315,27901.0,27899.0,0.21354272]
[1680587131400,0.0085,27901.0,27899.0,0.12818524]
[1680587131630,0.0255,27901.0,27899.0,0.55146685]
[1680587132306,0.032668,27901.0,27899.0,0.55146685]
[1680587133202,0.032668,27901.0,27899.0,0.29909889]
[1680587133352,0.032668,27901.0,27899.0,0.7223756]
[1680587136126,0.032668,27901.0,27900.0,0.12818524]
[1680587136245,0.032668,27901.0,27899.0,0.29909889]
[1680587136913,0.015668,27901.0,27899.0,0.72237785]
[1680587137321,0.45632703,27901.0,27899.0,0.72237785]
[1680587137524,0.43362703,27901.0,27899.0,0.29909889]
[1680587137732,0.45062703,27901.0,27899.0,0.12818524]
[1680587138274,0.45062703,27901.0,27899.0,0.55147081]
[1680587139565,0.52712333,27901.0,27899.0,0.55147081]
[1680587140201,0.38327732,27900.0,27899.0,0.12818524]
[1680587140438,0.015968,27900.0,27899.0,0.21359511]
[1680587140646,0.015668,27900.0,27899.0,0.21359511]
[1680587141090,0.032668,27900.0,27899.0,0.6368873]
[1680587141508,0.032668,27900.0,27899.0,0.5514812]
[1680587147168,0.0255,27900.0,27899.0,0.5514812]
[1680587147711,0.0255,27900.0,27899.0,0.63422687]
[1680587152846,0.0255,27900.0,27899.0,0.80514052]
[1680587153948,0.016912,27900.0,27899.0,0.82323503]
[1680587154189,0.016912,27900.0,27899.0,0.59525596]
[1680587154407,0.016912,27900.0,27899.0,0.66073077]
[1680587154653,0.016912,27900.0,27899.0,0.67506777]
[1680587154858,0.016912,27900.0,27899.0,0.67266349]
[1680587155076,0.3003,27904.0,27899.0,0.67266349]
[1680587155302,0.002,27900.0,27899.0,0.25100653]
[1680587155507,0.0085,27903.0,27900.0,0.17196]
[1680587155726,0.0085,27903.0,27902.0,0.21348282]
[1680587156213,0.0085,27903.0,27902.0,0.38544282]
[1680587156423,0.0085,27903.0,27902.0,0.46887628]
[1680587156634,0.0085,27903.0,27902.0,0.46887614]
[1680587156845,0.0085,27903.0,27902.0,0.80673038]
[1680587157060,0.0125,27903.0,27902.0,0.84942694]
[1680587158170,0.004,27903.0,27902.0,0.84942694]
[1680587158396,0.0105,27903.0,27902.0,0.85342694]
[1680587158839,0.002,27903.0,27902.0,0.85342694]
[1680587159034,0.0085,27904.0,27902.0,0.80668028]
[1680587159331,0.002,27903.0,27902.0,0.63217519]
[1680587159556,0.0085,27904.0,27903.0,0.17196]
[1680587159776,0.002,27903.0,27902.0,0.42088214]
[1680587159992,0.0085,27904.0,27903.0,0.17196]
[1680587160218,0.0105,27904.0,27903.0,0.21338976]
[1680587160435,0.0105,27904.0,27903.0,0.38534976]
[1680587161068,0.0085,27904.0,27903.0,0.21338976]
[1680587161260,0.0085,27904.0,27903.0,0.48083523]
[1680587161261,0.001,27904.0,27903.0,0.48083523]
[1680587161525,0.001,27904.0,27903.0,0.35280137]
[1680587161746,0.0095,27904.0,27903.0,0.0883559]
[1680587161983,0.0085,27904.0,27903.0,0.0853559]
[1680587162202,0.0085,27904.0,27903.0,0.0883559]
[1680587162416,0.0115241,27903.0,27902.0,0.544736]
[1680587162628,0.0115241,27903.0,27902.0,0.79600686]
[1680587162843,0.0115241,27903.0,27902.0,0.96796686]
[1680587163052,0.0200241,27903.0,27902.0,0.96796686]
[1680587163920,0.0200241,27903.0,27902.0,1.09383983]
[1680587164125,0.0200241,27903.0,27902.0,0.96674597]
[1680587164338,0.0200241,27903.0,27902.0,0.96680597]
[1680587164552,0.0200241,27903.0,27902.0,1.09481484]
[1680587165407,0.0200241,27903.0,27902.0,0.92402859]
[1680587165623,0.0200241,27903.0,27902.0,0.79815562]
[1680587166520,0.0115241,27903.0,27902.0,0.85835211]
[1680587166743,0.0115241,27903.0,27902.0,0.88689367]
[1680587166958,0.0115241,27903.0,27902.0,0.88671367]
[1680587167186,0.0115241,27903.0,27902.0,1.04225664]
[1680587167865,0.0115241,27903.0,27902.0,1.04237664]
[1680587168080,0.0115241,27903.0,27902.0,1.04243664]
[1680587169945,0.0115241,27903.0,27902.0,1.11316896]
[1680587170159,0.0115241,27903.0,27902.0,1.04243664]
[1680587171012,0.0115241,27903.0,27902.0,1.21295285]
[1680587171426,0.0115241,27903.0,27902.0,1.29386968]
[1680587171872,0.0115241,27903.0,27902.0,1.21295285]
[1680587172109,0.0115241,27903.0,27902.0,1.27643321]
[1680587172318,0.0115241,27903.0,27902.0,1.0629504]
[1680587172746,0.0115241,27903.0,27902.0,1.27643321]
[1680587173970,0.0115241,27903.0,27902.0,1.11736498]
[1680587174205,0.0115241,27903.0,27902.0,0.90382217]
[1680587174360,0.0115241,27903.0,27902.0,1.11730498]
[1680587174770,0.0115241,27903.0,27902.0,1.1172351]
[1680587175177,0.0115241,27903.0,27902.0,1.1315701]
[1680587175395,0.0115241,27903.0,27902.0,0.96112377]
[1680587175614,0.0115241,27903.0,27902.0,1.13156369]
[1680587176256,0.0115241,27903.0,27902.0,0.91808088]
[1680587178757,0.0115241,27903.0,27902.0,0.90374588]
[1680587179724,0.0115241,27903.0,27902.0,0.91808088]
[1680587179942,0.0115241,27903.0,27902.0,0.90374588]
[1680587180164,0.0115241,27903.0,27902.0,0.70556301]
[1680587180381,0.0115241,27903.0,27902.0,0.32164805]
[1680587181041,0.0118241,27903.0,27902.0,0.32164805]
[1680587182402,0.0118241,27903.0,27902.0,0.44944807]
[1680587182665,0.0118241,27903.0,27902.0,0.32164805]
[1680587183988,0.0118241,27903.0,27902.0,0.44944807]
[1680587185842,0.0118241,27903.0,27902.0,0.36424038]
[1680587186091,0.0115241,27903.0,27902.0,0.36424038]
[1680587187085,0.0118241,27903.0,27902.0,0.36424038]
[1680587187594,0.0118241,27903.0,27902.0,0.36418038]
[1680587188116,0.0118241,27903.0,27902.0,0.36424038]
[1680587188630,0.0115241,27903.0,27902.0,0.36424038]
[1680587189408,0.0115241,27903.0,27902.0,0.5346203]
[1680587189669,0.0115241,27903.0,27902.0,0.90138756]
[1680587189915,0.0115241,27903.0,27902.0,1.19609321]
[1680587190170,0.0115241,27903.0,27902.0,1.12920537]
[1680587190426,0.0115241,27903.0,27902.0,1.26285847]
[1680587190680,0.0115241,27903.0,27902.0,1.19197586]
[1680587191195,0.0115241,27903.0,27902.0,1.02153045]
[1680587192335,0.0115241,27903.0,27902.0,1.10405295]
[1680587193483,0.0115241,27903.0,27902.0,1.02053045]
[1680587193832,0.0145241,27903.0,27902.0,1.02653045]
[1680587194251,0.0145241,27903.0,27902.0,1.09128786]
[1680587194458,0.0115241,27903.0,27902.0,1.08528786]
[1680587194675,0.0145241,27903.0,27902.0,1.09128786]
[1680587194883,0.0115241,27903.0,27902.0,1.08528786]
[1680587195697,0.01143221,27903.0,27902.0,1.08528786]
[1680587195919,0.01443221,27903.0,27902.0,0.87580505]
[1680587196137,0.01143221,27903.0,27902.0,0.87180505]
[1680587196357,0.01443221,27903.0,27902.0,0.87580505]
[1680587196809,0.01143221,27903.0,27902.0,0.87180505]
[1680587197044,0.01443221,27903.0,27902.0,0.87580505]
[1680587197691,0.01143221,27903.0,27902.0,0.87180505]
[1680587197911,0.01443221,27903.0,27902.0,0.87580505]
[1680587203185,0.01443221,27903.0,27902.0,1.13225665]
[1680587203399,0.01443221,27903.0,27902.0,0.79870505]
[1680587204464,0.01443221,27903.0,27902.0,1.05515665]
[1680587205319,0.01443221,27903.0,27902.0,1.06949165]
[1680587205519,0.01443221,27903.0,27902.0,1.05515665]
[1680587209351,0.01443221,27903.0,27902.0,1.05120462]
[1680587209542,0.01443221,27903.0,27902.0,1.05515665]
[1680587214660,0.01443221,27903.0,27902.0,0.92031567]
[1680587221947,0.01443221,27903.0,27902.0,0.87629326]
[1680587222157,0.01443221,27903.0,27902.0,0.71984166]
[1680587222785,0.01443221,27903.0,27902.0,0.70550666]
[1680587222998,0.01443221,27903.0,27902.0,0.71984166]
[1680587223634,0.01443221,27903.0,27902.0,1.22506543]
[1680587224281,0.01443221,27903.0,27902.0,1.12506283]
[1680587226448,0.01443221,27903.0,27902.0,1.11072783]
[1680587227217,0.01443221,27903.0,27902.0,0.85454441]
[1680587227435,0.01443221,27903.0,27902.0,1.11074309]
[1680587228314,0.01443221,27903.0,27902.0,0.85454441]
[1680587229438,0.01443221,27903.0,27902.0,0.86887941]
[1680587231006,0.01436553,27903.0,27902.0,0.86887941]
[1680587235963,0.01436553,27903.0,27902.0,0.7954416]
[1680587236366,0.01436553,27903.0,27902.0,0.88415206]
[1680587249983,0.01436553,27903.0,27902.0,2.24180993]
[1680587249984,0.00882887,27903.0,27902.0,2.24180993]
[1680587250206,0.00882887,27903.0,27902.0,2.47185216]
[1680587250651,0.00882887,27903.0,27902.0,2.46785216]
[1680587250652,0.00582887,27903.0,27902.0,2.46785216]
[1680587250857,0.00682887,27903.0,27902.0,2.49585216]
[1680587251289,0.00582887,27903.0,27902.0,2.46785216]
[1680587251491,0.00682887,27903.0,27902.0,2.49585216]
[1680587251913,0.00582887,27903.0,27902.0,2.46785216]
[1680587252140,0.00682887,27903.0,27902.0,3.08836169]
[1680587252366,0.00682887,27903.0,27902.0,2.49585216]
[1680587253005,0.00682887,27903.0,27902.0,2.34235216]
[1680587255607,0.00682887,27903.0,27902.0,2.72028116]
[1680587259256,0.00682887,27903.0,27902.0,2.34235216]
[1680587261668,0.00682887,27903.0,27902.0,2.72008372]
[1680587266534,0.00682887,27903.0,27902.0,2.72014372]
[1680587266747,0.00682887,27903.0,27902.0,2.72020372]
[1680587267901,0.00682887,27903.0,27902.0,2.72026372]
[1680587269897,0.00682887,27903.0,27902.0,2.71386372]
[1680587270588,0.00682887,27903.0,27902.0,2.71368372]
[1680587271099,0.00682887,27903.0,27902.0,2.71386372]
[1680587271532,0.00673313,27903.0,27902.0,2.71368372]
[1680587279585,0.02288,27910.0,27904.0,0.41292]
[1680587279805,0.02318,27910.0,27909.0,0.29837474]
[1680587279987,0.02318,27910.0,27909.0,0.79662293]
[1680587280223,0.02318,27910.0,27909.0,0.9078134]
[1680587280843,0.02418,27910.0,27909.0,0.9078134]
[1680587281151,0.02318,27910.0,27909.0,1.06279672]
[1680587281467,0.02418,27910.0,27909.0,1.03587532]
[1680587282129,0.02418,27910.0,27909.0,1.38258757]
[1680587282348,0.02388,27910.0,27909.0,1.67807332]
[1680587282571,0.02388,27910.0,27909.0,1.71389332]
[1680587283025,0.01469517,27910.0,27909.0,1.8925431]
[1680587283681,0.01369517,27910.0,27909.0,1.8645431]
[1680587283889,0.01369517,27910.0,27909.0,1.8925431]
[1680587284095,0.01369517,27910.0,27909.0,1.8645431]
[1680587284309,0.01369517,27910.0,27909.0,1.8925431]
[1680587285389,0.01369517,27910.0,27909.0,1.63679332]
[1680587285607,0.01369517,27910.0,27909.0,1.8925431]
[1680587287512,0.01369517,27910.0,27909.0,1.63679332]
[1680587288419,0.01369517,27910.0,27909.0,1.8925431]
[1680587288631,0.01369517,27910.0,27909.0,1.63679332]
[1680587290090,0.01369517,27910.0,27909.0,1.8925431]
[1680587290286,0.01369517,27910.0,27909.0,2.0716831]
[1680587291301,0.01369517,27910.0,27909.0,1.81593332]
[1680587291534,0.01369517,27910.0,27909.0,2.0716831]
[1680587292140,0.01369517,27910.0,27909.0,1.81593332]
[1680587292541,0.01369517,27910.0,27909.0,2.0716831]
[1680587292952,0.01369517,27910.0,27909.0,1.81593332]
[1680587293205,0.01369517,27910.0,27909.0,1.63679332]
[1680587293599,0.01369517,27910.0,27909.0,1.8925431]
[1680587294157,0.01369517,27910.0,27909.0,1.71997472]
[1680587294499,0.01369517,27910.0,27909.0,1.73430672]
[1680587295218,0.01369517,27910.0,27909.0,1.91344672]
[1680587295433,0.01369517,27910.0,27909.0,1.71459694]
[1680587295640,0.01369517,27910.0,27909.0,1.97034672]
[1680587297302,0.01369517,27910.0,27909.0,1.800917]
[1680587299514,0.01369517,27910.0,27909.0,1.54516722]
[1680587300173,0.01369517,27910.0,27909.0,1.800917]
[1680587300628,0.01369517,27910.0,27909.0,1.54516722]
[1680587307278,0.01369517,27910.0,27909.0,1.45865694]
[1680587307495,0.01369517,27910.0,27909.0,1.53954575]
[1680587309549,0.01369517,27910.0,27909.0,1.79529553]
[1680587309986,0.01369517,27910.0,27909.0,1.53954575]
[1680587310906,0.01369517,27910.0,27909.0,1.79529553]
[1680587312562,0.01369517,27910.0,27909.0,1.7951848]
[1680587312974,0.00855944,27910.0,27909.0,1.7951848]
[1680587313344,0.00855944,27910.0,27909.0,1.71429599]
[1680587316380,0.00855944,27910.0,27909.0,1.78311469]
[1680587316596,0.00855944,27910.0,27909.0,1.52736491]
[1680587317984,0.00855944,27910.0,27909.0,1.45854621]
[1680587318402,0.00855944,27910.0,27909.0,1.52620937]
[1680587319734,0.00855944,27910.0,27909.0,1.45854621]
[1680587319967,0.00855944,27910.0,27909.0,1.53693905]
[1680587320416,0.00855944,27910.0,27909.0,1.45854621]
[1680587320630,0.00855944,27910.0,27909.0,1.53290764]
[1680587321267,0.00855944,27910.0,27909.0,1.45854621]
[1680587322136,0.00855944,27910.0,27909.0,1.54175856]
[1680587322322,0.00855944,27910.0,27909.0,1.45854621]
[1680587322535,0.00855944,27910.0,27909.0,1.53206265]
[1680587323758,0.00855944,27910.0,27909.0,1.90969318]
[1680587326168,0.00855944,27910.0,27909.0,1.53206265]
[1680587336006,0.00855944,27910.0,27909.0,1.91000274]
[1680587336235,0.00855944,27910.0,27909.0,1.52092006]
[1680587336461,0.00855944,27910.0,27909.0,1.89886119]
[1680587338908,0.00855944,27910.0,27909.0,1.82534475]
[1680587339138,0.00855944,27910.0,27909.0,0.54633696]
[1680587341173,0.00855944,27910.0,27909.0,0.61837238]
[1680587341396,0.00855944,27910.0,27909.0,0.60470438]
[1680587341611,0.00855944,27910.0,27909.0,0.63270438]
[1680587342023,0.00855944,27910.0,27909.0,0.81667353]
[1680587342794,0.00855944,27910.0,27909.0,0.80234153]
[1680587342991,0.00536191,27910.0,27909.0,0.80234153]
[1680587343188,0.00536191,27910.0,27909.0,0.81667353]
[1680587344775,0.30105872,27910.0,27904.0,0.45219899]
[1680587345001,0.2,27908.0,27904.0,0.2132335]
[1680587345230,0.3542,27905.0,27901.0,0.31443657]
[1680587345474,0.3542,27905.0,27898.0,0.17196]
[1680587345475,0.2,27899.0,27898.0,0.17196]
[1680587345701,0.40230381,27899.0,27897.0,0.00012]
[1680587345919,0.35453081,27898.0,27895.0,0.12820117]
[1680587346136,0.35453081,27898.0,27894.0,0.1705868]
[1680587346137,0.0771,27896.0,27894.0,0.12820117]
[1680587346385,0.214607,27895.0,27894.0,0.47074797]
[1680587346602,1.01209772,27895.0,27894.0,0.29878797]
[1680587346833,1.01209772,27895.0,27894.0,0.47083096]
[1680587347053,1.01926672,27895.0,27894.0,0.47083096]
[1680587347278,1.01926672,27895.0,27894.0,0.1722]
[1680587347742,1.03026672,27895.0,27894.0,0.00118]
[1680587347965,1.03026672,27895.0,27894.0,0.001]
[1680587348402,1.15762499,27895.0,27894.0,0.001]
[1680587349529,1.03026672,27895.0,27894.0,0.001]
[1680587349751,0.232776,27895.0,27894.0,0.001]
[1680587349977,0.232776,27895.0,27894.0,0.34753577]
[1680587350219,0.0963,27895.0,27894.0,0.51973577]
[1680587350444,0.0878,27895.0,27894.0,0.51955577]
[1680587350664,0.0878,27895.0,27894.0,0.54821577]
[1680587350883,0.0878,27895.0,27894.0,0.60226935]
[1680587351318,0.0878,27895.0,27894.0,0.37619577]
[1680587351551,0.0878,27895.0,27894.0,0.54833577]
[1680587356411,0.0878,27895.0,27894.0,0.54821577]
[1680587356707,0.08634319,27895.0,27894.0,0.54821577]
[1680587358841,0.08634319,27895.0,27894.0,0.54815577]
[1680587359053,0.08634319,27895.0,27894.0,0.60506935]
[1680587359923,0.08634319,27895.0,27894.0,0.54815577]